[Event "Championnat du monde jeunes U10"]
[Date "2024.11.17"]
[White "Czech, Emil"]
[Black "Radiukevich, Viacheslau"]
[WhiteElo "1608"]
[BlackElo "1484"]
[Round "3.16"]
[Result "1-0"]
[TimeControl "5400+30"]

1. e4 {[%clk 1:30:59]} 1... e5 {[%clk 1:30:47]} 2. Nf3 {[%clk 1:31:19]} 2... Nc6
{[%clk 1:31:09]} 3. d4 {[%clk 1:31:35]} 3... exd4 {[%clk 1:31:32]} 4. Nxd4
{[%clk 1:31:59]} 4... Nf6 {[%clk 1:31:50]} 5. Nc3 {[%clk 1:32:21]} 5... Bb4
{[%clk 1:32:12]} 6. Nxc6 {[%clk 1:32:41]} 6... bxc6 {[%clk 1:32:37]} 7. Bd3
{[%clk 1:33:02]} 7... d5 {[%clk 1:33:03]} 8. exd5 {[%clk 1:33:27]} 8... cxd5
{[%clk 1:33:23]} 9. O-O {[%clk 1:33:47]} 9... O-O {[%clk 1:33:49]} 10. Bg5
{[%clk 1:34:10]} 10... c6 {[%clk 1:34:14]} 11. Re1 {[%clk 1:34:10]} 11... Be6
{[%clk 1:30:53]} 12. h3 {[%clk 1:32:31]} 12... Be7 {[%clk 1:29:03]} 13. Ne2
{[%clk 1:22:00]} 13... Ne4 {[%clk 1:23:47]} 14. Bxe7 {[%clk 1:21:30]} 14... Qxe7
{[%clk 1:24:08]} 15. Nd4 {[%clk 1:09:45]} 15... Qf6 {[%clk 1:18:44]} 16. Bxe4
{[%clk 1:08:25]} 16... dxe4 {[%clk 1:18:59]} 17. c3 {[%clk 1:06:25]} 17... c5
{[%clk 1:18:35]} 18. Nb3 {[%clk 1:05:33]} 18... Qg6 {[%clk 1:17:50]} 19. Kh1
{[%clk 1:00:00]} 19... c4 {[%clk 1:15:53]} 20. Nd4 {[%clk 1:00:17]} 20... f5
{[%clk 1:16:06]} 21. Nxe6 {[%clk 0:52:20]} 21... Qxe6 {[%clk 1:16:24]} 22. Qe2
{[%clk 0:52:40]} 22... Rae8 {[%clk 1:16:19]} 23. Rad1 {[%clk 0:52:09]} 23... Rd8
{[%clk 1:07:11]} 24. f4 {[%clk 0:35:07]} 24... Rxd1 {[%clk 1:05:28]} 25. Rxd1
{[%clk 0:35:27]} 25... e3 {[%clk 1:05:12]} 26. Kg1 {[%clk 0:31:45]} 26... Re8
{[%clk 1:03:36]} 27. Rd4 {[%clk 0:30:06]} 27... Kh8 {[%clk 1:02:54]} 28. Kf1
{[%clk 0:29:38]} 28... Rc8 {[%clk 0:59:35]} 29. Qf3 {[%clk 0:27:31]} 29... Re8
{[%clk 0:59:04]} 30. Rd5 {[%clk 0:22:57]} 30... e2+ {[%clk 0:58:53]} 31. Ke1
{[%clk 0:22:20]} 31... Qb6 {[%clk 0:58:37]} 32. Re5 {[%clk 0:22:28]} 32... Qg1+
{[%clk 0:58:58]} 33. Kxe2 {[%clk 0:22:38]} 33... Rd8 {[%clk 0:58:08]} 34. Qd5
{[%clk 0:22:18]} 34... Qb6 {[%clk 0:55:35]} 35. Qb5 {[%clk 0:21:08]} 35... Qg6
{[%clk 0:55:10]} 36. g4 {[%clk 0:18:08]} 36... fxg4 {[%clk 0:55:13]} 37. f5
{[%clk 0:18:07]} 37... Qf7 {[%clk 0:52:57]} 38. hxg4 {[%clk 0:17:43]} 38... Rg8
{[%clk 0:50:37]} 39. a4 {[%clk 0:11:29]} 39... Rf8 {[%clk 0:48:09]} 40. a5
{[%clk 0:10:53]} 40... g6 {[%clk 0:48:21]} 41. Re6 {[%clk 0:10:10]} 41... gxf5
{[%clk 0:47:23]} 42. Qe5+ {[%clk 0:09:43]} 42... Qg7 {[%clk 0:46:40]} 43. gxf5
{[%clk 0:09:25]} 43... Qxe5+ {[%clk 0:46:25]} 44. Rxe5 {[%clk 0:09:46]} 44...
Kg7 {[%clk 0:46:51]} 45. Ke3 {[%clk 0:08:57]} 45... Kf6 {[%clk 0:47:02]} 46. Kf4
{[%clk 0:08:45]} 46... Rc8 {[%clk 0:46:26]} 47. Re6+ {[%clk 0:08:18]} 47... Kf7
{[%clk 0:46:49]} 48. Ra6 {[%clk 0:08:08]} 48... Rb8 {[%clk 0:46:30]} 49. Rxa7+
{[%clk 0:08:08]} 49... Kg8 {[%clk 0:46:30]} 50. Ra6 {[%clk 0:08:21]} 50... Rxb2
{[%clk 0:46:49]} 51. Ra7 {[%clk 0:06:46]} 51... Ra2 {[%clk 0:47:03]} 52. a6
{[%clk 0:05:47]} 52... Ra3 {[%clk 0:45:19]} 53. Kg5 {[%clk 0:06:04]} 53... h5
{[%clk 0:45:38]} 54. Kf6 {[%clk 0:06:13]} 54... Kh8 {[%clk 0:45:41]} 55. Kg6
{[%clk 0:06:11]} 55... h4 {[%clk 0:44:39]} 1-0

[Variant "Standard"]
[Site "Europe Echecs"]

[Event "Championnat du monde jeunes U10"]
[Date "2024.11.17"]
[White "Park, Jaeik"]
[Black "Lee, Yugeon"]
[WhiteElo "1477"]
[BlackElo "1690"]
[Round "3.18"]
[Result "1-0"]
[TimeControl "5400+30"]

1. e4 {[%clk 1:30:56]} 1... e5 {[%clk 1:30:51]} 2. Nf3 {[%clk 1:31:15]} 2... Nc6
{[%clk 1:31:15]} 3. Bb5 {[%clk 1:31:36]} 3... a6 {[%clk 1:31:38]} 4. Ba4 {[%clk
1:32:01]} 4... Nf6 {[%clk 1:32:01]} 5. Qe2 {[%clk 1:32:25]} 5... b5 {[%clk
1:32:21]} 6. Bb3 {[%clk 1:32:43]} 6... Be7 {[%clk 1:32:42]} 7. O-O {[%clk
1:33:02]} 7... O-O {[%clk 1:32:16]} 8. c3 {[%clk 1:33:21]} 8... d5 {[%clk
1:29:19]} 9. exd5 {[%clk 1:26:09]} 9... Nxd5 {[%clk 1:29:40]} 10. Nxe5 {[%clk
1:18:22]} 10... Nxe5 {[%clk 1:29:45]} 11. Qxe5 {[%clk 1:18:41]} 11... c6 {[%clk
1:29:28]} 12. d4 {[%clk 1:16:50]} 12... Bf6 {[%clk 1:27:06]} 13. Qg3 {[%clk
1:15:27]} 13... Re8 {[%clk 1:25:41]} 14. Nd2 {[%clk 1:14:04]} 14... Bh4 {[%clk
1:21:43]} 15. Qf3 {[%clk 1:09:01]} 15... Be6 {[%clk 1:13:14]} 16. Ne4 {[%clk
1:03:25]} 16... b4 {[%clk 1:01:30]} 17. Bd2 {[%clk 0:59:17]} 17... Be7 {[%clk
0:53:21]} 18. Ba4 {[%clk 0:55:06]} 18... Qd7 {[%clk 0:51:58]} 19. Bc2 {[%clk
0:50:02]} 19... bxc3 {[%clk 0:37:48]} 20. bxc3 {[%clk 0:49:49]} 20... Nf6 {[%clk
0:37:13]} 21. Rfc1 {[%clk 0:38:44]} 21... Bd5 {[%clk 0:36:57]} 22. Re1 {[%clk
0:32:55]} 22... Rab8 {[%clk 0:34:42]} 23. Nxf6+ {[%clk 0:29:27]} 23... Bxf6
{[%clk 0:35:05]} 24. Qd3 {[%clk 0:28:44]} 24... g6 {[%clk 0:34:51]} 25. a4 Qg4
{[%clk 0:31:51]} 26. Qg3 {[%clk 0:25:41]} 26... Qxg3 {[%clk 0:29:52]} 27. hxg3
{[%clk 0:25:53]} 27... Rxe1+ {[%clk 0:30:14]} 28. Rxe1 {[%clk 0:26:16]} 28...
Rb2 {[%clk 0:30:36]} 29. Bh6 {[%clk 0:26:15]} 29... Be6 {[%clk 0:30:58]} 30. Bd3
{[%clk 0:26:09]} 30... g5 {[%clk 0:23:13]} 31. Bc4 {[%clk 0:25:30]} 31... Bd7
{[%clk 0:19:01]} 32. Bxa6 {[%clk 0:25:12]} 32... Bd8 {[%clk 0:18:27]} 33. Bc8
{[%clk 0:24:21]} 33... Be6 {[%clk 0:15:12]} 34. Bxe6 {[%clk 0:24:39]} 34... fxe6
35. Rxe6 {[%clk 0:25:03]} 35... Kf7 {[%clk 0:15:39]} 36. Rxc6 {[%clk 0:25:15]}
36... Ra2 {[%clk 0:14:09]} 37. Ra6 {[%clk 0:25:22]} 37... Rc2 {[%clk 0:14:34]}
38. a5 {[%clk 0:24:51]} 38... Rxc3 {[%clk 0:14:35]} 39. Ra8 {[%clk 0:24:41]}
39... Be7 {[%clk 0:14:42]} 40. Ra7 {[%clk 0:24:52]} 40... Kg6 {[%clk 0:13:31]}
41. Rxe7 {[%clk 0:25:05]} 41... Kxh6 {[%clk 0:13:56]} 42. a6 {[%clk 0:25:24]}
42... Rc8 {[%clk 0:14:06]} 43. a7 {[%clk 0:25:41]} 43... Ra8 {[%clk 0:14:20]}
44. d5 {[%clk 0:26:03]} 44... Kg6 {[%clk 0:14:44]} 45. Kf1 {[%clk 0:25:53]}
45... h6 {[%clk 0:15:07]} 46. Ke2 {[%clk 0:25:40]} 46... Kf6 {[%clk 0:15:28]}
47. d6 {[%clk 0:25:38]} 47... Rd8 {[%clk 0:15:48]} 48. Re3 {[%clk 0:25:43]}
48... Ra8 {[%clk 0:15:57]} 49. d7 {[%clk 0:26:00]} 49... h5 {[%clk 0:16:21]} 50.
Re8 {[%clk 0:26:16]} 50... Rxe8+ {[%clk 0:16:48]} 51. dxe8=Q {[%clk 0:26:37]}
51... Kg7 {[%clk 0:17:15]} 52. Qe7+ {[%clk 0:26:46]} 52... Kg8 {[%clk 0:17:39]}
53. a8=R# {[%clk 0:27:11]} 1-0

[Variant "Standard"]
[Site "Europe Echecs"]

[Event "Championnat du monde jeunes U10"]
[Date "2024.11.17"]
[White "Vydra, David"]
[Black "Osmolovskii, Nikita"]
[WhiteElo "1615"]
[BlackElo "1468"]
[Round "3.19"]
[Result "1-0"]
[TimeControl "5400+30"]

1. e4 {[%clk 1:30:53]} 1... e5 {[%clk 1:30:55]} 2. Nf3 {[%clk 1:31:09]} 2... d6
{[%clk 1:31:20]} 3. d4 {[%clk 1:31:30]} 3... exd4 {[%clk 1:31:45]} 4. Nxd4
{[%clk 1:31:48]} 4... Nf6 {[%clk 1:32:03]} 5. Nc3 {[%clk 1:29:39]} 5... Be7
{[%clk 1:32:18]} 6. Bf4 {[%clk 1:29:12]} 6... O-O {[%clk 1:32:33]} 7. Qd2 {[%clk
1:27:51]} 7... Nbd7 {[%clk 1:32:25]} 8. O-O-O {[%clk 1:26:49]} 8... Nc5 {[%clk
1:29:14]} 9. f3 {[%clk 1:25:36]} 9... c6 {[%clk 1:20:47]} 10. g4 {[%clk
1:20:14]} 10... Bd7 {[%clk 1:18:10]} 11. h4 {[%clk 1:17:45]} 11... b5 {[%clk
1:15:36]} 12. h5 {[%clk 1:06:39]} 12... Ne8 {[%clk 0:28:59]} 13. Nf5 {[%clk
0:52:20]} 13... Bxf5 {[%clk 0:08:32]} 14. gxf5 {[%clk 0:46:55]} 14... a5 {[%clk
0:08:19]} 15. Rg1 {[%clk 0:46:15]} 15... h6 {[%clk 0:07:26]} 16. Bxh6 {[%clk
0:46:21]} 16... Bf6 {[%clk 0:07:15]} 17. Bxg7 {[%clk 0:44:45]} 17... Nxg7 {[%clk
0:06:42]} 18. h6 {[%clk 0:45:07]} 1-0

[Variant "Standard"]
[Site "Europe Echecs"]

[Event "Championnat du monde jeunes U10"]
[Date "2024.11.17"]
[White "Loberti, Tommaso"]
[Black "Hung, I-Hsuan"]
[WhiteElo "1474"]
[BlackElo "1608"]
[Round "3.20"]
[Result "1/2-1/2"]
[TimeControl "5400+30"]

1. e4 {[%clk 1:30:58]} 1... e5 {[%clk 1:30:50]} 2. Nf3 {[%clk 1:31:21]} 2... Nc6
{[%clk 1:31:08]} 3. Bb5 {[%clk 1:31:43]} 3... a6 {[%clk 1:31:25]} 4. Ba4 {[%clk
1:32:08]} 4... Nf6 {[%clk 1:31:40]} 5. O-O {[%clk 1:32:10]} 5... b5 {[%clk
1:31:43]} 6. Bb3 {[%clk 1:32:32]} 6... Be7 {[%clk 1:31:29]} 7. Re1 {[%clk
1:32:34]} 7... O-O {[%clk 1:30:02]} 8. c3 {[%clk 1:31:41]} 8... h6 {[%clk
1:26:52]} 9. d4 {[%clk 1:25:04]} 9... d6 {[%clk 1:22:25]} 10. h3 {[%clk
1:18:21]} 10... Bb7 {[%clk 1:14:37]} 11. Nbd2 {[%clk 1:09:50]} 11... Re8 {[%clk
1:12:33]} 12. Nf1 {[%clk 1:06:06]} 12... Bf8 {[%clk 1:10:07]} 13. Ng3 {[%clk
0:58:27]} 13... Na5 {[%clk 1:03:48]} 14. Bc2 {[%clk 0:56:04]} 14... Qd7 {[%clk
1:00:14]} 15. dxe5 {[%clk 0:51:21]} 15... dxe5 {[%clk 1:00:22]} 16. Qxd7 {[%clk
0:50:21]} 16... Nxd7 {[%clk 0:59:57]} 17. Bd2 {[%clk 0:48:26]} 17... Nc4 {[%clk
0:56:51]} 18. Bc1 {[%clk 0:46:47]} 18... g6 {[%clk 0:53:59]} 19. b3 {[%clk
0:43:57]} 19... Nd6 {[%clk 0:51:29]} 20. Bd2 {[%clk 0:40:20]} 20... Nf6 {[%clk
0:47:36]} 21. Nh2 {[%clk 0:36:57]} 21... Rad8 {[%clk 0:45:16]} 22. Rad1 {[%clk
0:35:53]} 1/2-1/2

[Variant "Standard"]
[Site "Europe Echecs"]

[Event "Championnat du monde jeunes U10"]
[Date "2024.11.17"]
[White "Munoz Padilla, Andres"]
[Black "Vukashinovikj, Jovan"]
[WhiteElo "1604"]
[BlackElo "1454"]
[Round "3.21"]
[Result "1-0"]
[TimeControl "5400+30"]

1. e4 {[%clk 1:30:54]} 1... e5 {[%clk 1:30:55]} 2. Nf3 {[%clk 1:31:15]} 2... Nf6
{[%clk 1:31:20]} 3. Nxe5 {[%clk 1:31:36]} 3... Nc6 {[%clk 1:31:43]} 4. Nxc6
{[%clk 1:31:59]} 4... dxc6 {[%clk 1:32:06]} 5. d3 {[%clk 1:32:21]} 5... Bc5
{[%clk 1:32:11]} 6. Be2 {[%clk 1:32:27]} 6... Ng4 {[%clk 1:32:31]} 7. Bxg4
{[%clk 1:32:49]} 7... Qh4 {[%clk 1:32:52]} 8. Qf3 {[%clk 1:33:08]} 8... Bxg4
{[%clk 1:33:13]} 9. Qg3 {[%clk 1:33:31]} 9... Qxg3 {[%clk 1:33:24]} 10. hxg3
{[%clk 1:33:49]} 10... Be6 {[%clk 1:33:33]} 11. Bf4 {[%clk 1:30:15]} 11... O-O-O
{[%clk 1:33:25]} 12. Nd2 {[%clk 1:29:26]} 12... f5 {[%clk 1:31:59]} 13. O-O-O
{[%clk 1:21:30]} 13... Bxf2 {[%clk 1:25:13]} 14. exf5 {[%clk 1:21:46]} 14... Bd5
{[%clk 1:18:49]} 15. Nf3 {[%clk 1:18:46]} 15... h6 {[%clk 1:16:41]} 16. Rhf1
{[%clk 1:10:15]} 16... Bc5 {[%clk 1:14:40]} 17. Kb1 {[%clk 1:09:44]} 17... Rhe8
{[%clk 1:14:32]} 18. Rde1 {[%clk 1:08:49]} 18... Kb8 {[%clk 1:07:37]} 19. Be5
{[%clk 0:57:02]} 19... Bxf3 {[%clk 1:05:05]} 20. gxf3 {[%clk 0:56:40]} 20... Re7
{[%clk 1:05:08]} 21. Bc3 {[%clk 0:55:40]} 21... Rde8 {[%clk 1:05:17]} 22. Re4
{[%clk 0:53:01]} 22... Bd6 {[%clk 1:02:57]} 23. Bxg7 {[%clk 0:48:55]} 23... Bxg3
{[%clk 1:03:16]} 24. f6 {[%clk 0:49:03]} 24... Rxe4 {[%clk 1:03:29]} 25. fxe4
{[%clk 0:49:16]} 25... Bd6 {[%clk 1:03:49]} 26. f7 {[%clk 0:49:38]} 26... Rc8
{[%clk 1:04:10]} 27. f8=Q {[%clk 0:49:57]} 27... Bxf8 {[%clk 1:04:31]} 28. Rxf8
{[%clk 0:50:20]} 28... Rxf8 {[%clk 1:04:50]} 29. Bxf8 {[%clk 0:50:43]} 29... h5
{[%clk 1:05:12]} 30. Be7 {[%clk 0:51:09]} 30... Kc8 {[%clk 1:05:34]} 31. Kc1
{[%clk 0:51:29]} 31... Kd7 {[%clk 1:05:46]} 32. Bh4 {[%clk 0:51:51]} 32... Ke6
{[%clk 1:06:11]} 33. Kd2 {[%clk 0:52:15]} 33... Ke5 {[%clk 1:06:37]} 34. Ke3
{[%clk 0:51:57]} 1-0

[Variant "Standard"]
[Site "Europe Echecs"]

[Event "Championnat du monde jeunes U10"]
[Date "2024.11.17"]
[White "McFadden, Oisin"]
[Black "Novac, Daniil"]
[WhiteElo "1464"]
[BlackElo "1594"]
[Round "3.22"]
[Result "0-1"]
[TimeControl "5400+30"]

1. e4 {[%clk 1:30:58]} 1... Nf6 {[%clk 1:30:41]} 2. Nc3 {[%clk 1:31:11]} 2... d5
{[%clk 1:30:59]} 3. exd5 {[%clk 1:30:59]} 3... Nxd5 {[%clk 1:30:36]} 4. Bc4
{[%clk 1:30:18]} 4... Nxc3 {[%clk 1:30:43]} 5. Qf3 {[%clk 1:30:18]} 5... e6
{[%clk 1:30:21]} 6. dxc3 {[%clk 1:29:35]} 6... Nd7 {[%clk 1:27:14]} 7. Ne2 Ne5
8. Bb5+ {[%clk 1:24:12]} 8... c6 {[%clk 1:27:12]} 9. Qe4 {[%clk 1:23:58]} 9...
Qd5 {[%clk 1:26:05]} 10. Qxd5 {[%clk 1:24:13]} 10... exd5 {[%clk 1:26:29]} 11.
Ba4 {[%clk 1:24:32]} 11... a5 {[%clk 1:25:47]} 12. a3 {[%clk 1:23:41]} 12... Be7
{[%clk 1:23:25]} 13. O-O {[%clk 1:23:08]} 13... O-O {[%clk 1:23:30]} 14. Re1
{[%clk 1:21:42]} 14... Re8 {[%clk 1:20:52]} 15. Ng3 {[%clk 1:20:55]} 15... Bf6
{[%clk 1:18:55]} 16. f4 {[%clk 1:19:52]} 16... Nf3+ {[%clk 1:15:49]} 17. gxf3
{[%clk 1:18:52]} 17... Rxe1+ {[%clk 1:16:01]} 18. Kf2 {[%clk 1:19:13]} 18... Re7
{[%clk 1:15:16]} 19. Be3 {[%clk 1:19:20]} 19... Bh4 {[%clk 1:12:36]} 20. Bd4
{[%clk 1:19:34]} 20... Bxg3+ {[%clk 1:11:29]} 21. hxg3 {[%clk 1:19:33]} 21... b5
{[%clk 1:11:39]} 22. Bb3 {[%clk 1:19:40]} 22... a4 {[%clk 1:11:57]} 23. Ba2
{[%clk 1:20:02]} 23... Bf5 {[%clk 1:11:51]} 24. Bb1 {[%clk 1:20:10]} 24... Rae8
{[%clk 1:11:48]} 25. g4 {[%clk 1:20:19]} 25... Re2+ {[%clk 1:12:07]} 26. Kg3
{[%clk 1:20:14]} 26... Bxc2 {[%clk 1:12:25]} 27. Bxc2 {[%clk 1:20:19]} 27...
Rxc2 {[%clk 1:12:50]} 28. f5 {[%clk 1:19:32]} 28... f6 {[%clk 1:12:07]} 29. Kf4
{[%clk 1:18:28]} 29... Ree2 {[%clk 1:11:25]} 30. Rg1 {[%clk 1:18:33]} 30... Rg2
{[%clk 1:11:21]} 31. Re1 {[%clk 1:17:16]} 31... Rce2 {[%clk 1:11:37]} 32. Rxe2
{[%clk 1:13:21]} 32... Rxe2 {[%clk 1:11:50]} 33. c4 {[%clk 1:13:41]} 33... bxc4
{[%clk 1:11:36]} 34. Bc3 {[%clk 1:13:43]} 34... c5 {[%clk 1:11:13]} 35. g5
{[%clk 1:12:29]} 35... d4 {[%clk 1:11:14]} 36. Ba5 {[%clk 1:12:37]} 36... d3
{[%clk 1:10:58]} 37. gxf6 {[%clk 1:12:33]} 37... gxf6 {[%clk 1:11:16]} 38. Kg4
{[%clk 1:11:50]} 38... d2 {[%clk 1:11:32]} 39. Bxd2 {[%clk 1:12:17]} 39... Rxd2
{[%clk 1:11:57]} 40. b4 {[%clk 1:12:02]} 40... cxb3 {[%clk 1:12:18]} 41. Kf4
{[%clk 1:12:16]} 41... b2 {[%clk 1:12:27]} 42. Ke3 {[%clk 1:12:41]} 42... Rd1
{[%clk 1:12:40]} 43. Ke2 {[%clk 1:12:44]} 43... b1=Q {[%clk 1:12:47]} 44. Ke3
{[%clk 1:13:06]} 44... Qd3+ {[%clk 1:12:47]} 45. Kf4 {[%clk 1:13:16]} 45... Rf1
{[%clk 1:12:32]} 46. Kg4 {[%clk 1:12:53]} 46... Qxf3+ {[%clk 1:12:47]} 47. Kh4
{[%clk 1:13:03]} 47... Rh1# {[%clk 1:13:07]} 0-1

[Variant "Standard"]
[Site "Europe Echecs"]

[Event "Championnat du monde jeunes U10"]
[Date "2024.11.18"]
[White "Anetov, Amirzhan"]
[Black "Shangin, Lev"]
[WhiteElo "1767"]
[BlackElo "2056"]
[Round "4.9"]
[Result "1/2-1/2"]
[TimeControl "5400+30"]

1. e4 {[%clk 1:30:58]} 1... c5 {[%clk 1:30:37]} 2. Nf3 {[%clk 1:31:25]} 2... d6
{[%clk 1:30:38]} 3. d4 {[%clk 1:31:50]} 3... cxd4 {[%clk 1:30:39]} 4. Nxd4
{[%clk 1:32:17]} 4... Nf6 {[%clk 1:30:46]} 5. Nc3 {[%clk 1:32:43]} 5... a6
{[%clk 1:31:13]} 6. Bc4 {[%clk 1:33:09]} 6... e6 {[%clk 1:27:25]} 7. Bb3 {[%clk
1:33:35]} 7... Be7 {[%clk 1:23:52]} 8. Bg5 {[%clk 1:14:32]} 8... Qb6 {[%clk
1:13:05]} 9. Be3 {[%clk 1:11:38]} 9... Qc7 {[%clk 1:12:13]} 10. g4 {[%clk
1:10:25]} 10... h6 {[%clk 1:04:53]} 11. Qe2 {[%clk 1:03:10]} 11... Nc6 {[%clk
1:01:07]} 12. Nxc6 {[%clk 1:00:40]} 12... bxc6 {[%clk 1:00:39]} 13. O-O-O {[%clk
1:00:33]} 13... d5 {[%clk 0:53:40]} 14. a3 {[%clk 0:42:19]} 14... Rb8 {[%clk
0:49:10]} 15. h4 {[%clk 0:35:29]} 15... d4 {[%clk 0:39:23]} 16. Bxd4 {[%clk
0:26:12]} 16... e5 {[%clk 0:38:38]} 17. Be3 {[%clk 0:26:19]} 17... Nxg4 {[%clk
0:36:06]} 18. Rhg1 {[%clk 0:22:34]} 18... h5 {[%clk 0:23:10]} 19. f3 {[%clk
0:18:28]} 19... Nxe3 {[%clk 0:22:53]} 20. Qxe3 {[%clk 0:18:55]} 20... g6 {[%clk
0:21:58]} 21. f4 {[%clk 0:18:04]} 21... exf4 {[%clk 0:19:55]} 22. Qd4 {[%clk
0:18:30]} 22... Rf8 {[%clk 0:17:39]} 23. Qg7 {[%clk 0:17:23]} 23... Bg4 {[%clk
0:16:39]} 24. Ba4 {[%clk 0:11:50]} 24... Rb5 {[%clk 0:04:43]} 25. Bxb5 {[%clk
0:08:21]} 25... axb5 {[%clk 0:05:08]} 26. Rd2 {[%clk 0:07:58]} 26... Bc5 {[%clk
0:04:47]} 27. Rgg2 {[%clk 0:06:36]} 27... f3 {[%clk 0:04:57]} 28. Rh2 {[%clk
0:07:02]} 28... Qf4 {[%clk 0:02:39]} 29. Nd1 {[%clk 0:07:08]} 29... Bg1 {[%clk
0:02:18]} 30. Rh1 {[%clk 0:05:40]} 30... Bb6 {[%clk 0:01:12]} 31. Qc3 {[%clk
0:05:57]} 31... Ke7 {[%clk 0:01:10]} 32. Qb4+ {[%clk 0:04:55]} 32... c5 {[%clk
0:01:13]} 33. Qxb5 {[%clk 0:05:16]} 33... Rd8 {[%clk 0:01:39]} 34. Rh2 {[%clk
0:05:39]} 34... Bc7 {[%clk 0:01:04]} 35. Qxc5+ {[%clk 0:05:02]} 35... Kf6 {[%clk
0:01:26]} 36. Ne3 {[%clk 0:04:48]} 36... Rxd2 {[%clk 0:00:32]} 37. Rxd2 {[%clk
0:05:14]} 37... Kg7 {[%clk 0:00:41]} 38. Nd5 {[%clk 0:04:33]} 38... Qxe4 {[%clk
0:00:31]} 39. Qxc7 {[%clk 0:04:08]} 39... Qe1+ {[%clk 0:00:33]} 40. Rd1 {[%clk
0:04:34]} 40... Qxd1+ {[%clk 0:00:53]} 41. Kxd1 {[%clk 0:04:59]} 41... f2+
{[%clk 0:01:21]} 42. Kd2 {[%clk 0:05:24]} 42... f1=Q {[%clk 0:01:47]} 43. Qe5+
{[%clk 0:05:31]} 43... Kh7 {[%clk 0:01:39]} 44. Nf6+ {[%clk 0:04:59]} 44... Kh6
{[%clk 0:02:04]} 45. Qe3+ {[%clk 0:05:14]} 45... Kg7 {[%clk 0:02:25]} 46. Nxg4
{[%clk 0:05:36]} 46... hxg4 {[%clk 0:02:34]} 47. Qd4+ {[%clk 0:06:02]} 47... Kh7
{[%clk 0:02:45]} 48. Qxg4 {[%clk 0:06:11]} 48... Qf2+ {[%clk 0:03:13]} 49. Kc3
{[%clk 0:06:23]} 49... Qc5+ {[%clk 0:03:26]} 50. Qc4 {[%clk 0:05:43]} 50... Qe3+
{[%clk 0:03:45]} 51. Kb4 {[%clk 0:04:30]} 51... f5 {[%clk 0:02:12]} 52. Qf7+
{[%clk 0:01:20]} 52... Kh6 {[%clk 0:02:10]} 53. h5 {[%clk 0:01:43]} 53... Kxh5
{[%clk 0:02:04]} 54. Qd5 {[%clk 0:01:33]} 54... Kg4 {[%clk 0:01:18]} 55. Qg2+
{[%clk 0:01:32]} 55... Qg3 {[%clk 0:00:47]} 56. Qe2+ {[%clk 0:01:15]} 56... Kg5
{[%clk 0:00:48]} 57. c4 {[%clk 0:01:22]} 57... f4 {[%clk 0:00:48]} 58. Qe5+
{[%clk 0:01:47]} 58... Kg4 {[%clk 0:01:03]} 59. c5 {[%clk 0:02:12]} 59... Qe3
{[%clk 0:00:35]} 60. Qf6 {[%clk 0:02:19]} 60... g5 {[%clk 0:00:51]} 61. c6
{[%clk 0:02:43]} 61... Qb6+ {[%clk 0:01:06]} 62. Kc4 {[%clk 0:02:49]} 62... f3
{[%clk 0:01:08]} 63. Qd4+ {[%clk 0:02:46]} 63... Qxd4+ {[%clk 0:01:32]} 64. Kxd4
{[%clk 0:03:11]} 64... f2 {[%clk 0:01:54]} 65. c7 {[%clk 0:03:34]} 65... f1=Q
{[%clk 0:02:22]} 66. c8=Q+ {[%clk 0:04:00]} 66... Kg3 {[%clk 0:02:33]} 67. Qc3+
{[%clk 0:03:34]} 67... Kh4 {[%clk 0:02:30]} 68. Kc5 {[%clk 0:01:52]} 68... Qf8+
{[%clk 0:02:03]} 69. Kb5 {[%clk 0:01:44]} 69... g4 {[%clk 0:02:15]} 70. a4
{[%clk 0:00:37]} 70... g3 {[%clk 0:01:36]} 71. Qd4+ {[%clk 0:01:01]} 71... Kh3
{[%clk 0:01:53]} 72. Qd7+ {[%clk 0:01:25]} 72... Kh2 {[%clk 0:02:04]} 73. Qc7
{[%clk 0:01:04]} 73... Qf1+ {[%clk 0:01:56]} 74. Kb4 {[%clk 0:01:11]} 74... Qe1+
{[%clk 0:02:19]} 75. Ka3 {[%clk 0:01:27]} 75... Qe3+ {[%clk 0:02:22]} 76. b3
{[%clk 0:01:35]} 76... Kg1 {[%clk 0:02:25]} 77. a5 {[%clk 0:01:31]} 77... g2
{[%clk 0:02:12]} 78. a6 {[%clk 0:01:50]} 78... Kf2 {[%clk 0:02:02]} 79. Qc2+
{[%clk 0:01:21]} 79... Qe2 {[%clk 0:01:45]} 80. Qf5+ {[%clk 0:01:22]} 80... Ke1
{[%clk 0:01:40]} 81. Qa5+ {[%clk 0:01:15]} 81... Kf2 {[%clk 0:01:24]} 82. Qf5+
{[%clk 0:00:56]} 1/2-1/2

[Variant "Standard"]
[Site "Europe Echecs"]

[Event "Championnat du monde jeunes U10"]
[Date "2024.11.18"]
[White "Mikkelsen, Anders Askjaer"]
[Black "Larion, Iustin"]
[WhiteElo "1745"]
[BlackElo "1925"]
[Round "4.13"]
[Result "1/2-1/2"]
[TimeControl "5400+30"]

1. e4 {[%clk 1:30:52]} 1... c6 {[%clk 1:30:41]} 2. d4 {[%clk 1:31:08]} 2... d5
{[%clk 1:31:05]} 3. exd5 {[%clk 1:31:20]} 3... cxd5 {[%clk 1:31:27]} 4. c4
{[%clk 1:31:30]} 4... e6 {[%clk 1:31:48]} 5. Nc3 {[%clk 1:31:45]} 5... Bb4
{[%clk 1:32:12]} 6. Nf3 {[%clk 1:31:57]} 6... Nf6 {[%clk 1:32:33]} 7. Bg5 {[%clk
1:31:40]} 7... h6 {[%clk 1:26:38]} 8. Bxf6 {[%clk 1:29:39]} 8... Qxf6 {[%clk
1:26:58]} 9. cxd5 {[%clk 1:27:56]} 9... O-O {[%clk 1:23:34]} 10. Bd3 {[%clk
1:27:01]} 10... exd5 {[%clk 1:20:14]} 11. O-O {[%clk 1:27:14]} 11... Bxc3 {[%clk
1:11:10]} 12. bxc3 {[%clk 1:26:06]} 12... Bg4 {[%clk 1:11:31]} 13. Be2 {[%clk
1:16:16]} 13... Nd7 {[%clk 1:05:42]} 14. h3 {[%clk 1:14:16]} 14... Bxf3 {[%clk
1:04:53]} 15. Bxf3 {[%clk 1:13:42]} 15... Nb6 {[%clk 1:05:09]} 16. a4 {[%clk
1:11:32]} 16... Qd6 {[%clk 1:00:59]} 17. Rb1 {[%clk 1:10:13]} 17... Qc6 {[%clk
0:50:24]} 18. Qb3 {[%clk 1:06:31]} 18... Rab8 {[%clk 0:45:11]} 19. Rfc1 {[%clk
1:03:10]} 19... Rfd8 {[%clk 0:40:34]} 20. Be2 {[%clk 0:59:17]} 20... Nc4 {[%clk
0:33:45]} 21. Bxc4 {[%clk 0:59:11]} 21... dxc4 {[%clk 0:33:56]} 22. Qb5 {[%clk
0:48:15]} 22... Qc7 {[%clk 0:31:19]} 23. Rb4 {[%clk 0:45:31]} 23... Rdc8 {[%clk
0:28:40]} 24. a5 {[%clk 0:40:25]} 24... Qf4 {[%clk 0:22:49]} 25. Rd1 {[%clk
0:40:07]} 25... Rc6 {[%clk 0:17:01]} 26. Rxc4 {[%clk 0:37:04]} 26... Rg6 {[%clk
0:16:43]} 27. Rc5 {[%clk 0:23:12]} 27... Qf3 {[%clk 0:09:28]} 28. Qf1 {[%clk
0:23:36]} 28... Rxg2+ {[%clk 0:08:54]} 29. Qxg2 {[%clk 0:23:54]} 29... Qxd1+
{[%clk 0:09:08]} 30. Kh2 {[%clk 0:24:04]} 30... Re8 {[%clk 0:09:00]} 31. Qxb7
{[%clk 0:21:08]} 31... Qd2 {[%clk 0:03:14]} 32. Qf3 {[%clk 0:21:01]} 32... f6
{[%clk 0:01:46]} 33. Kg2 {[%clk 0:18:01]} 33... Qc2 {[%clk 0:01:28]} 34. Rc7 Re2
35. Qg3 Qe4+ 36. Kh2 g5 37. Rd7 1/2-1/2

[Variant "Standard"]
[Site "Europe Echecs"]